Cogmind - Beta 13 @@@ ROGUE MODE // 2024.04.24 @ 16:34:25 Player: NOGames Result: Destroyed by G-50 Soldier with Heavy Laser Performance ------------- Evolutions (5) 2500 Regions Visited (12) 2400 Robots Destroyed (82) 410 Value Destroyed (4593) 4593 Prototype IDs (26) 520 Alien Tech Used (0) 0 Bonus (2990) 2990 TOTAL SCORE: 13413 Bonus ------- High Alert Combat Kills 636 Follower Combat Kills 1993 Entered Garrisons 200 Used RIF Installer 500 Aligned with FarCom 300 Friendly Fire -639 Cogmind --------- Core Integrity 0/1000 Matter 215/300 Energy 23/100 System Corruption 8% Temperature Cool (11) Movement Flying (42) Location -5/Factory Parts ------- > --- POWER (1) -------- (None) > --- PROPULSION (4) --- Field Propulsion Drive Field Propulsion Drive (fused) > --- UTILITY (8) ------ Machine Analyzer Improved Signal Interpreter Centrium Medium Armor Plating Improved Hacking Suite System Shield Improved System Shield Improved System Shield > --- WEAPON (4) ------- Ripper Falx > --- INVENTORY (5) ---- (None) Peak State ------------ > --- POWER ------------ Quantum Reactor > --- PROPULSION ------- Carbon-fiber Leg Carbon-fiber Leg Carbon-fiber Leg Carbon-fiber Leg > --- UTILITY ---------- Large Storage Unit Machine Analyzer Enhanced Optical Array Improved Signal Interpreter Improved Hacking Suite Improved Hacking Suite Improved System Shield Improved System Shield > --- WEAPON ----------- Heavy Laser Advanced Datajack Ripper > --- INVENTORY -------- Light Angular Momentum Engine Neutrino Core Flexi-carbon Leg Flexi-carbon Leg Myomer Leg Advanced Heat Sink Enhanced Optical Array Centrium Medium Armor Plating Centrium Medium Armor Plating System Shield Improved System Shield Improved System Shield [Rating: 74] Favorites ----------- Power Light Nuclear Core Engine Light Angular Momentum Engine Power Core Light Nuclear Core Reactor Quantum Reactor Propulsion Carbon-fiber Leg Treads Light Treads Leg Carbon-fiber Leg Flight Unit Surge Thruster Utility Machine Analyzer Device Structural Scanner Storage Large Storage Unit Processor Machine Analyzer Hackware System Shield Protection Improved Light Armor Plating Weapon Scythe Energy Gun Heavy Laser Energy Cannon Heavy Plasma Cannon Ballistic Gun Flak Gun Ballistic Cannon Heavy Mass Driver Launcher Rocket Launcher Slashing Weapon Scythe Special Melee Weapon Improved Datajack Build | -11 -10 -10 -10 -9 -8 -7 -7 -6 -6 -6 -6 -5 ------- Run | Yrd Mat Min Exi Min Mat Fac Gar Fac Ext Cet Arc Fac Slots Evolved 10 | . . . . . 4 2 . 2 . . . 2 Power . | . . . . . . . . . . . . . Propulsion 2 | . . . . . 1 . . 1 . . . . Utility 6 | . . . . . 2 2 . . . . . 2 Weapon 2 | . . . . . 1 . . 1 . . . . Parts Attached 157 | 2 6 . 2 4 27 4 45 3 35 5 11 13 Power 17 | . 3 . . . 2 1 3 1 4 2 . 1 Engine 9 | . 1 . . . 1 . . 1 4 1 . 1 Core 7 | . 2 . . . 1 1 3 . . . . . Reactor 1 | . . . . . . . . . . 1 . . Propulsion 58 | 2 . . . . 12 . 19 . 17 . 6 2 Treads 4 | 2 . . . . . . 2 . . . . . Leg 46 | . . . . . 11 . 12 . 17 . 6 . Wheel . | . . . . . . . . . . . . . Hover . | . . . . . . . . . . . . . Flight 8 | . . . . . 1 . 5 . . . . 2 Utility 40 | . 1 . 1 2 9 3 9 1 3 2 3 6 Device 9 | . 1 . . 2 2 1 2 . . 1 . . Storage 4 | . . . 1 . 3 . . . . . . . Processor 7 | . . . . . 1 1 1 1 2 . 1 . Hackware 9 | . . . . . . 1 1 . . . 2 5 Protection 11 | . . . . . 3 . 5 . 1 1 . 1 Artifact . | . . . . . . . . . . . . . Weapon 42 | . 2 . 1 2 4 . 14 1 11 1 2 4 Energy Gun 2 | . . . . . . . . . 1 . 1 . Energy Cannon 1 | . . . . . . . . . 1 . . . Ballistic Gun 5 | . 1 . 1 . 1 . . . 2 . . . Ballistic Cannon 11 | . 1 . . . . . 3 . 6 1 . . Launcher 3 | . . . . 2 . . 1 . . . . . Special Weapon . | . . . . . . . . . . . . . Impact Weapon . | . . . . . . . . . . . . . Slashing Weapon 18 | . . . . . 3 . 10 . 1 . 1 3 Piercing Weapon . | . . . . . . . . . . . . . Special Melee Weapon 2 | . . . . . . . . 1 . . . 1 Unidentified Prototypes 3 | . . . . 1 1 . . . . 1 . . Corrupted Parts 1 | . . . . . . . 1 . . . . . System Corruption 3 | . . . . . . . 3 . . . . . Parts Lost 69 | . 1 . . . 1 . 26 . 18 3 9 11 Power 8 | . 1 . . . . . 2 . 3 1 . 1 Propulsion 29 | . . . . . . . 11 . 9 . 5 4 Utility 15 | . . . . . 1 . 6 . 2 1 . 5 Weapon 17 | . . . . . . . 7 . 4 1 4 1 Highest Loss Streak 11 | . 1 . . . 1 . 11 . 11 3 4 10 To Critical Strikes 1 | . . . . . . . . . 1 . . . Average Slot Usage (%) 88 | . 89 100 99 99 92 98 84 80 80 99 87 75 Engine 1 | . 8 . . . 5 . . 2 5 1 . . Core 5 | . 5 14 14 14 3 7 6 3 . . . . Treads 7 | . 28 28 28 28 . . 1 13 1 . . . Leg 13 | . . . . . 20 23 14 . 22 26 25 17 Flight 1 | . . . . . . . 4 6 . . . . Device 6 | . 4 14 14 14 15 9 4 1 . 5 3 . Storage 8 | . 14 14 14 14 9 7 7 6 6 6 6 3 Processor 13 | . . . . . 2 13 20 20 22 21 17 15 Hackware 2 | . . . . . . 5 1 . . . 6 20 Protection 3 | . . . . . 8 7 4 6 3 4 5 . Ballistic Gun 2 | . 14 14 13 . . . . . 1 13 2 . Ballistic Cannon 6 | . 12 14 14 14 . . 5 6 10 4 . . Launcher 1 | . . . . 13 . . . . . . . . Slashing Weapon 8 | . . . . . 26 23 11 6 . . 4 5 Naked Turns . | . . . . . . . . . . . . . Heaviest Build 75 | 13 16 16 20 23 39 42 55 56 72 75 75 48 Greatest Support 80 | 40 40 40 40 40 60 60 60 40 80 60 60 60 Greatest Overweight (x) 16 | . . . . . 8 . 16 1 4 1 1 1 Average Overweight (x) . | . . . . . . . 1 1 . . . . Largest Inventory Capacity 20 | 8 8 8 10 10 20 15 15 15 15 15 15 15 Average Capacity 13 | 8 8 8 8 10 10 15 15 15 15 15 15 12 Most Carried 15 | 6 8 8 8 10 11 12 15 15 15 15 15 15 Average Carried 11 | 6 7 8 7 9 9 10 12 14 12 14 12 11 Final Capacity 15 | 8 8 8 10 10 15 15 15 15 15 15 15 5 Final Carried 15 | 6 8 8 8 10 10 12 12 15 15 15 15 . Class Distribution -------------------- 30% | Mutant 23% | Assassin 17% | Scavenger-Assassin 10% | Scavenger-Skirmisher 8% | Skirmisher 6% | Commander-Assassin Dominant Class ---------------- Mutant | -10/Materials Mutant | -10/Mines Mutant | -10/Exiles Mutant | -9/Mines Mutant | -8/Materials Assassin | -7/Factory Assassin | -7/Garrison Commander-Assassin | -6/Factory Skirmisher | -6/Extension Scavenger-Skirmisher | -6/Cetus Scavenger-Assassin | -6/Archives Scavenger-Assassin | -5/Factory Resources | -11 -10 -10 -10 -9 -8 -7 -7 -6 -6 -6 -6 -5 ----------- Run | Yrd Mat Min Exi Min Mat Fac Gar Fac Ext Cet Arc Fac Matter Collected 3805 | 194 251 . . 110 214 . 722 113 1754 195 223 29 Remotely . | . . . . . . . . . . . . . Salvage Created 2993 | . 300 . . 52 414 . 605 49 922 92 530 29 Parts 132 | . 15 . . 6 16 . 39 1 25 1 25 4 Haulers Intercepted 2 | . . . . . 2 . . . . . . . Recyclers Shooed 2 | . . . . . . . . . 2 . . . Parts Field Recycled . | . . . . . . . . . . . . . Retrieved Matter . | . . . . . . . . . . . . . Parts Self-Destructed . | . . . . . . . . . . . . . Prevented . | . . . . . . . . . . . . . Kills | -11 -10 -10 -10 -9 -8 -7 -7 -6 -6 -6 -6 -5 ------- Run | Yrd Mat Min Exi Min Mat Fac Gar Fac Ext Cet Arc Fac Combat Hostiles Destroyed 59 | . 7 . . 6 4 . 19 1 16 2 4 . Melee 17 | . . . . . 4 . 13 . . . . . Guns 9 | . 4 . . . . . . . 1 1 3 . Cannons 25 | . 3 . . 1 . . 5 1 14 1 . . AOE 6 | . . . . 5 . . 1 . . . . . Classes Destroyed 16 | . 2 . . 1 3 . 4 . 4 . 1 1 Worker 1 | . . . . . . . . . 1 . . . Builder 1 | . . . . . . . . . 1 . . . Tunneler 1 | . . . . . . . . . . . . 1 Hauler 2 | . . . . . 2 . . . . . . . Recycler 5 | . 1 . . . 1 . . . 3 . . . Operator 9 | . . . . . . . . . . . 9 . Watcher 1 | . . . . . 1 . . . . . . . Swarmer 11 | . . . . 4 . . 7 . . . . . Cutter 4 | . . . . . . . 4 . . . . . Grunt 26 | . 7 . . 2 3 . 2 1 9 2 . . Duelist 1 | . . . . . . . 1 . . . . . Protector 1 | . . . . . . . . . 1 . . . Sentry 10 | . . . . . . . 3 . 3 . 4 . Hunter 4 | . . . . . 1 . 1 . 2 . . . Programmer 1 | . . . . . . . 1 . . . . . Behemoth 1 | . . . . . . . . . 1 . . . Guerrilla 3 | . . . . . . . 2 . 1 . . . Best Kill Streak 7 | . 4 . . 4 4 . 7 1 2 2 3 1 Combat Bots Only 7 | . 4 . . 4 3 . 7 1 2 2 1 . Max Kills in Single Turn 2 | . 1 . . 2 1 . 2 1 1 1 1 1 Gunslinging . | . . . . . . . . . . . . . Exploded 2 | . . . . 2 . . 1 . . . . . Melee 1 | . . . . . 1 . 1 . . . . . Uniques/NPCs Destroyed . | . . . . . . . . . . . . . Combat | -11 -10 -10 -10 -9 -8 -7 -7 -6 -6 -6 -6 -5 -------- Run | Yrd Mat Min Exi Min Mat Fac Gar Fac Ext Cet Arc Fac Hostile Shots Fired 914 | . 42 . . 12 26 . 388 . 275 37 45 89 Missed 271 | . 12 . . 4 13 . 101 . 94 16 8 23 Damage Taken 10288 | . 362 . . 91 186 . 3764 . 3024 535 899 1427 Core 2343 | . 59 . . . . . 680 . 449 72 74 1009 Absorbed by Shields . | . . . . . . . . . . . . . Redirected to Shielding 31 | . . . . . . . 31 . . . . . Ignored by Resistances 39 | . . . . . . . . . 39 . . . Core Remaining (%) 61 | 100 . . . 76 100 . 2 . . . 30 . Volleys Fired 171 | . 28 . . 8 . . 28 6 64 12 25 . Largest 4 | . 2 . . 2 . . 2 1 4 4 4 . Hottest 256 | . 60 . . 65 . . 123 75 256 227 215 . Shots Fired 341 | . 56 . . 10 . . 38 6 133 47 51 . Gun 125 | . 30 . . . . . . . 22 30 43 . Cannon 211 | . 26 . . 6 . . 37 6 111 17 8 . Launcher 5 | . . . . 4 . . 1 . . . . . Special . | . . . . . . . . . . . . . Kinetic 273 | . 54 . . 6 . . 37 6 119 30 21 . Thermal 61 | . . . . . . . . . 14 17 30 . Explosive 5 | . . . . 4 . . 1 . . . . . Electromagnetic 2 | . 2 . . . . . . . . . . . Robot Hit Streak 17 | . 11 . . 5 . . 5 1 13 8 17 . Robot Miss Streak 7 | . 2 . . 1 . . 6 1 7 7 7 . Penetration Max 1 | . . . . . . . . . 1 . . . Secondary Targets . | . . . . . . . . . . . . . Shots Hit Robots 318 | . 41 . . 6 19 . 63 1 87 36 59 6 Core Hits 173 | . 15 . . 13 8 . 29 1 39 28 38 2 Critical Kills 1 | . . . . . . . . . 1 . . . Critical Parts Destroyed 3 | . . . . . . . . . 1 2 . . Critical Strikes 27 | . 2 . . 2 2 . 9 . 7 4 1 . Burn 3 | . . . . . . . . . . 2 1 . Meltdown 1 | . . . . . . . . . 1 . . . Destroy 3 | . . . . . . . . . 1 2 . . Blast 10 | . 2 . . 2 . . 1 . 5 . . . Sever 10 | . . . . . 2 . 8 . . . . . Melee Attacks 221 | . . . . . 28 20 137 . . . 21 15 Impact . | . . . . . . . . . . . . . Slashing 218 | . . . . . 28 20 137 . . . 21 12 Piercing . | . . . . . . . . . . . . . Sneak Attacks 21 | . . . . . 6 . . . . . 14 1 Combat Hostiles 1 | . . . . . 1 . . . . . . . Follow-up Attacks 12 | . . . . . 1 . 11 . . . . . Damage Inflicted 12423 | . 614 10 . 434 789 . 2350 53 4839 909 2231 194 Guns 2053 | . 303 . . . . . . . 389 569 792 . Cannons 5920 | . 303 . . 65 . . 664 53 4450 340 45 . Explosions 682 | . . . . 365 . . 317 . . . . . Melee 3745 | . . . . . 789 . 1369 . . . 1393 194 Ramming 23 | . 8 10 . 4 . . . . . . 1 . Kinetic 6809 | . 575 . . 65 . . 664 53 4510 533 409 . Thermal 1133 | . . . . . . . . . 329 376 428 . Explosive 682 | . . . . 365 . . 317 . . . . . Electromagnetic 31 | . 31 . . . . . . . . . . . Impact . | . . . . . . . . . . . . . Slashing 3745 | . . . . . 789 . 1369 . . . 1393 194 Piercing . | . . . . . . . . . . . . . Highest Corruption 8 | . . . . . . . 4 . 6 6 6 8 Average Corruption 4 | . . . . . . . 3 . 5 6 6 4 Corruption Purged . | . . . . . . . . . . . . . Corruption Blocked . | . . . . . . . . . . . . . Effects 126 | . . . . . . . 53 . 37 10 22 4 Message Errors 32 | . . . . . . . 18 . 10 1 3 . Matter Fused 26 | . . . . . . . 11 . 9 2 4 . Heat Flow Errors 12 | . . . . . . . 5 . 2 1 2 2 Energy Discharges 15 | . . . . . . . 5 . 3 1 5 1 Parts Rejected 4 | . . . . . . . 1 . 3 . . . Parts Fused 1 | . . . . . . . . . . . . 1 Data Loss (minor) 19 | . . . . . . . 5 . 6 4 4 . Data Loss (major) 6 | . . . . . . . 3 . 2 . 1 . Misfires 7 | . . . . . . . 4 . 1 . 2 . Alerts 1 | . . . . . . . . . 1 . . . Weapon Failures 3 | . . . . . . . 1 . . 1 1 . Overload Shots . | . . . . . . . . . . . . . Overflow Damage 867 | . 3 . . 5 101 . 52 . 302 . 404 . Projectiles 351 | . 3 . . . . . 46 . 302 . . . Explosions 5 | . . . . 5 . . . . . . . . Melee 511 | . . . . . 101 . 6 . . . 404 . Knockbacks 38 | . 15 . . 1 . . 2 . 19 1 . . Impact . | . . . . . . . . . . . . . Kinetic 31 | . 9 . . 1 . . 2 . 18 1 . . Secondary 7 | . 6 . . . . . . . 1 . . . Self-Inflicted Damage 299 | . . . . . . . 299 . . . . . Shots 3 | . . . . . . . 3 . . . . . Rammed 6 | . 3 2 . 1 . . . . . . . . Targets Rammed 8 | . 4 2 . 1 . . . . . . 1 . Kicked 1 | . . . . . . . . . . . 1 . Crushed 1 | . 1 . . . . . . . . . . . Highest Temperature 649 | . 46 . . 49 . . 267 36 649 442 225 198 Average Temperature 113 | . 21 . . 33 . . 79 15 140 160 91 99 Received Heat Transfer 1824 | . 219 . . 42 63 . 543 . 678 63 153 63 Effects 12 | . . . . . . . . . 11 1 . . Shutdowns 5 | . . . . . . . . . 4 1 . . Energy Bleed 2 | . . . . . . . . . 2 . . . Matter Decay 2 | . . . . . . . . . 2 . . . Short Circuit 1 | . . . . . . . . . 1 . . . Damage (minor) 1 | . . . . . . . . . 1 . . . Damage (core) 1 | . . . . . . . . . 1 . . . Siege Activations . | . . . . . . . . . . . . . Robots Corrupted . | . . . . . . . . . . . . . Combat Hostiles . | . . . . . . . . . . . . . Parts Fried 2 | . . . . . . . . . 2 . . . Impact Corruptions . | . . . . . . . . . . . . . Robots Melted 2 | . . . . . . . . . 1 . 1 . Combat Hostiles 2 | . . . . . . . . . 1 . 1 . Parts Melted 4 | . . . . . 1 . . . . . 3 . Heat Transferred 1988 | . . . . . . . . . 354 733 901 . Parts Sabotaged . | . . . . . . . . . . . . . Parts Stolen . | . . . . . . . . . . . . . Parts Stripped . | . . . . . . . . . . . . . Power Chain Reactions . | . . . . . . . . . . . . . Alert | -11 -10 -10 -10 -9 -8 -7 -7 -6 -6 -6 -6 -5 ------- Run | Yrd Mat Min Exi Min Mat Fac Gar Fac Ext Cet Arc Fac Peak Influence 1745 | . 216 30 . 110 177 35 1745 1187 918 642 290 57 Initial 915 | . . 30 . . . 25 11 915 581 513 256 42 Average 449 | . 103 30 . 52 34 17 785 1048 747 577 200 42 Maximum Alert Level 5 | . 1 . . . . . 5 4 3 2 1 . Low Security (%) 46 | 100 98 100 . 100 100 100 10 . . . 39 100 Level 1 6 | . 1 . . . . . 10 . . . 60 . Level 2 13 | . . . . . . . 23 . 24 100 . . Level 3 25 | . . . . . . . 34 64 75 . . . Level 4 5 | . . . . . . . 10 35 . . . . Level 5 2 | . . . . . . . 10 . . . . . High Security . | . . . . . . . . . . . . . Max Security . | . . . . . . . . . . . . . Squads Dispatched 14 | . 1 . . . 1 . . 3 6 1 . 2 Investigation 2 | . . . . . . . . 1 . 1 . . Extermination 1 | . . . . . . . . . . . . 1 Reinforcement 7 | . 1 . . . 1 . . 1 3 . . 1 Assault 4 | . . . . . . . . 1 3 . . . Garrison . | . . . . . . . . . . . . . Intercept . | . . . . . . . . . . . . . Searches Triggered . | . . . . . . . . . . . . . Construction Impeded 1 | . . . . . . . . . 1 . . . Haulers Reinforced . | . . . . . . . . . . . . . Active Scanning Responses . | . . . . . . . . . . . . . Cargo Convoy Interrupts . | . . . . . . . . . . . . . Stealth | -11 -10 -10 -10 -9 -8 -7 -7 -6 -6 -6 -6 -5 --------- Run | Yrd Mat Min Exi Min Mat Fac Gar Fac Ext Cet Arc Fac Distress Signals 4 | . 1 . . . 1 . . . 2 . . . Communications Jammed . | . . . . . . . . . . . . . Distress Signals . | . . . . . . . . . . . . . Times Spotted 160 | . 16 . . 6 11 . 29 9 48 8 25 8 Peak Tracking Total 7 | . 4 . . 4 4 . 7 3 7 5 1 6 Tactical Retreats 3 | . . . . . 1 . . . 2 . . . Traps | -11 -10 -10 -10 -9 -8 -7 -7 -6 -6 -6 -6 -5 ------- Run | Yrd Mat Min Exi Min Mat Fac Gar Fac Ext Cet Arc Fac Traps Triggered 6 | . . . . . . . 5 . 1 . . . Indirectly . | . . . . . . . . . . . . . Trap Hack Attempts . | . . . . . . . . . . . . . Triggered . | . . . . . . . . . . . . . Disarmed . | . . . . . . . . . . . . . Reprogrammed . | . . . . . . . . . . . . . Reused . | . . . . . . . . . . . . . Traps Extracted . | . . . . . . . . . . . . . Installed . | . . . . . . . . . . . . . Triggered 1 | . . . . . . . . . 1 . . . Machines | -11 -10 -10 -10 -9 -8 -7 -7 -6 -6 -6 -6 -5 ---------- Run | Yrd Mat Min Exi Min Mat Fac Gar Fac Ext Cet Arc Fac Machines Disabled 16 | . 1 . . 1 . . 11 3 . . . . Max in Single Turn 2 | . 1 . . 1 . . 2 . . . . . Garrison Relay 6 | . . . . . . . 6 . . . . . Phase Generator 1 | . . . . . . . 1 . . . . . Machines Repaired . | . . . . . . . . . . . . . Machines Dismantled . | . . . . . . . . . . . . . Machines Sabotaged . | . . . . . . . . . . . . . Overloaded Fab Kills . | . . . . . . . . . . . . . Hacking | -11 -10 -10 -10 -9 -8 -7 -7 -6 -6 -6 -6 -5 --------- Run | Yrd Mat Min Exi Min Mat Fac Gar Fac Ext Cet Arc Fac Machines Accessed 29 | . 3 . 2 1 4 3 4 2 3 3 1 3 Terminals 22 | . 1 . . . 4 2 4 2 3 3 . 3 Fabricators . | . . . . . . . . . . . . . Repair Stations . | . . . . . . . . . . . . . Recycling Units 2 | . 2 . . . . . . . . . . . Scanalyzers . | . . . . . . . . . . . . . Garrison Access 1 | . . . . . . 1 . . . . . . Total Hacks 93 | . 7 . 5 1 10 4 6 5 8 11 15 21 Successful 50 | . 4 . 5 1 5 1 4 2 4 2 15 7 Failed 43 | . 3 . . . 5 3 2 3 4 9 . 14 Catastrophic 14 | . . . . . 2 . . . 1 6 . 5 Database Lockouts . | . . . . . . . . . . . . . Manual 29 | . 2 . 1 . 7 1 . 4 1 1 . 12 Terminals 66 | . 2 . . . 10 3 6 5 8 11 . 21 Fabricators . | . . . . . . . . . . . . . Repair Stations . | . . . . . . . . . . . . . Recycling Units 5 | . 5 . . . . . . . . . . . Scanalyzers . | . . . . . . . . . . . . . Garrison Access 1 | . . . . . . 1 . . . . . . Terminal Hacks 40 | . 1 . 5 1 2 . 4 1 3 2 15 6 Record 22 | . . . 4 . . . . . . 2 15 1 Robot Analysis 1 | . 1 . . . . . . . . . . . Open Door 4 | . . . . 1 . . 1 . 2 . . . Level Access Points 1 | . . . . . . . . . . . . 1 Branch Access Points 2 | . . . . . 1 . . 1 . . . . Emergency Access Points 1 | . . . . . . . 1 . . . . . Alert Level 1 | . . . . . . . . . . . . 1 Locate Traps 2 | . . . . . . . . . 1 . . 1 Zone Layout 3 | . . . . . 1 . . . . . . 2 Patrol Navigation 1 | . . . . . . . 1 . . . . . Security Stations 1 | . . . . . . . 1 . . . . . Derelict Proto ID Bank 1 | . . . 1 . . . . . . . . . Fabricator Hacks . | . . . . . . . . . . . . . Repair Station Hacks . | . . . . . . . . . . . . . Recycling Unit Hacks 3 | . 3 . . . . . . . . . . . Report Inventory 2 | . 2 . . . . . . . . . . . Retrieve Components 1 | . 1 . . . . . . . . . . . Scanalyzer . | . . . . . . . . . . . . . Garrison Access Hacks 1 | . . . . . . 1 . . . . . . Unlock Access 1 | . . . . . . 1 . . . . . . Unauthorized Hacks 6 | . . . . . 3 . . 1 1 . . 1 Terminals 6 | . . . . . 3 . . 1 1 . . 1 Assimilate 1 | . . . . . 1 . . . . . . . Botnet 5 | . . . . . 2 . . 1 1 . . 1 Fabricators . | . . . . . . . . . . . . . Repair Stations . | . . . . . . . . . . . . . Recycling Units . | . . . . . . . . . . . . . Scanalyzers . | . . . . . . . . . . . . . Garrison Access . | . . . . . . . . . . . . . Data Cores Recovered . | . . . . . . . . . . . . . Used . | . . . . . . . . . . . . . Hacking Detections 22 | . 2 . . . 4 2 3 2 3 3 . 3 Full Trace Events 1 | . . . . . . . . . . 1 . . Feedback Events . | . . . . . . . . . . . . . Feedback Blocked . | . . . . . . . . . . . . . Robot Schematics Acquired . | . . . . . . . . . . . . . Robots Built . | . . . . . . . . . . . . . Authchips . | . . . . . . . . . . . . . Time . | . . . . . . . . . . . . . Total Robot Build Rating . | . . . . . . . . . . . . . Part Schematics Acquired . | . . . . . . . . . . . . . Parts Built . | . . . . . . . . . . . . . Authchips . | . . . . . . . . . . . . . Time . | . . . . . . . . . . . . . Total Part Build Rating . | . . . . . . . . . . . . . Parts Repaired . | . . . . . . . . . . . . . Time . | . . . . . . . . . . . . . Parts Recycled . | . . . . . . . . . . . . . Recycled Matter . | . . . . . . . . . . . . . Retrieved Matter . | . . . . . . . . . . . . . Retrieved Components 9 | . 9 . . . . . . . . . . . Parts Scanalyzed . | . . . . . . . . . . . . . Part Schematics Acquired . | . . . . . . . . . . . . . Parts Damaged . | . . . . . . . . . . . . . Bothacking | -11 -10 -10 -10 -9 -8 -7 -7 -6 -6 -6 -6 -5 ------------ Run | Yrd Mat Min Exi Min Mat Fac Gar Fac Ext Cet Arc Fac Used RIF Installer 1 | . . . . . . . 1 . . . . . Robots Hacked 1 | . . . . . . . . . . . . 1 Non-combat . | . . . . . . . . . . . . . Combat 1 | . . . . . . . . . . . . 1 Robot Hacks Applied 1 | . . . . . . . . . . . . 1 parse_system 1 | . . . . . . . . . . . . 1 Relay Couplers Released 27 | . . . . . . . 27 . . . . . Machine Destruction 27 | . . . . . . . 27 . . . . . Fabnet Peak Effective % . | . . . . . . . . . . . . . Robots Rewired 21 | . . . . . . . 8 . 13 . . . Allies Hacked . | . . . . . . . . . . . . . Hacks Repelled . | . . . . . . . . . . . . . Allies | -11 -10 -10 -10 -9 -8 -7 -7 -6 -6 -6 -6 -5 -------- Run | Yrd Mat Min Exi Min Mat Fac Gar Fac Ext Cet Arc Fac Total Allies 28 | . . 2 . . . . 12 . 14 . . . Largest Group 8 | . . 2 2 . . . 8 8 7 3 1 . Highest-Rated Group 196 | . . 40 40 . . . 192 192 196 101 29 . Highest-Rated Ally 62 | . . 31 31 . . . 62 32 39 39 29 . Total Orders . | . . . . . . . . . . . . . Ally Attacks 356 | . . . . . . . 29 57 235 33 2 . Total Damage 7219 | . . . . . . . 719 1305 4580 577 38 . Kills 56 | . . . . . . . 9 10 32 5 . . Allies Corrupted . | . . . . . . . . . . . . . Allies Melted . | . . . . . . . . . . . . . Intel | -11 -10 -10 -10 -9 -8 -7 -7 -6 -6 -6 -6 -5 ------- Run | Yrd Mat Min Exi Min Mat Fac Gar Fac Ext Cet Arc Fac Robot Analysis Total 1 | . 1 . . . . . . . . . . . Derelict Logs Recovered 3 | . . 1 . 2 . . . . . . . . Drone Launches . | . . . . . . . . . . . . . Drone Recoveries . | . . . . . . . . . . . . . Exploration | -11 -10 -10 -10 -9 -8 -7 -7 -6 -6 -6 -6 -5 ------------- Run | Yrd Mat Min Exi Min Mat Fac Gar Fac Ext Cet Arc Fac Turns Passed 10430 | 3 491 125 414 1269 1068 684 2844 583 1575 270 662 442 Spaces Moved 5314 | 1 226 73 257 776 521 474 1148 222 721 126 370 399 Core 143 | . . . . . 2 . . . . . . 141 Treads 1683 | 1 226 73 257 776 12 . 74 222 42 . . . Legs 3297 | . . . . . 507 474 891 . 679 126 370 250 Wheels . | . . . . . . . . . . . . . Hover . | . . . . . . . . . . . . . Flight 191 | . . . . . . . 183 . . . . 8 Fastest Speed 42 | 160 160 160 160 160 120 130 110 240 120 120 120 42 Average Speed 160 | 160 160 160 160 160 156 130 200 240 147 172 122 93 Slowest Speed 1005 | 160 160 160 160 160 450 130 1005 240 400 190 190 190 Overloaded Moves . | . . . . . . . . . . . . . Propulsion Burnouts . | . . . . . . . . . . . . . Robots Hopped . | . . . . . . . . . . . . . Cave-ins Triggered . | . . . . . . . . . . . . . Exploration Rate (%) 48 | 2 47 18 64 97 44 11 95 10 73 66 91 17 Regions Visited 12 Branch Regions 6 Pre-discovered Areas 2 | . . . 1 1 . . . . . . . . Known Exits Taken 5 | . . . . . 1 1 . 1 1 . 1 . Unknown Exits Taken 6 | 1 1 1 1 1 . . . . . 1 . . Scrap Searched 2 | . . . . 2 . . . . . . . . Spaces Dug 27 | . . . . . 4 12 . 4 . . . 7 Terrain Destroyed 293 | . . . . 28 4 12 178 5 52 2 5 7 Melee 23 | . . . . . 4 12 . . . . . 7 Projectile 83 | . . . . . . . 19 5 52 2 5 . AOE 187 | . . . . 28 . . 159 . . . . . Terrain Rammed . | . . . . . . . . . . . . . Walls Destroyed . | . . . . . . . . . . . . . Machines Disabled . | . . . . . . . . . . . . . Actions | -11 -10 -10 -10 -9 -8 -7 -7 -6 -6 -6 -6 -5 --------- Run | Yrd Mat Min Exi Min Mat Fac Gar Fac Ext Cet Arc Fac Total 6597 | 2 298 80 261 791 741 520 1477 265 1059 149 504 450 Wait 399 | . 24 6 . . 136 29 64 28 23 2 68 19 Move 5301 | . 225 72 256 775 520 473 1146 221 720 125 369 399 Hop . | . . . . . . . . . . . . . Pick Up 78 | . 6 . 1 2 9 1 21 4 24 3 7 . Fast Attach 50 | . 2 . . 1 9 2 17 1 12 1 2 3 Attach 70 | . 1 . 1 . 4 1 22 1 20 3 7 10 Detach 9 | . . . . . 3 1 1 . 2 . . 2 Swap 37 | 2 3 . 1 3 14 1 6 1 3 1 2 . Drop 59 | . 5 . 2 1 22 . 10 3 10 2 2 2 Fire 171 | . 28 . . 8 . . 28 6 64 12 25 . Melee 174 | . . . . . 24 12 102 . . . 21 15 Ram . | . . . . . . . . . . . . . Kick 1 | . . . . . . . . . . . 1 . Crush 7 | . 4 2 . 1 . . . . . . . . Escape Stasis 24 | . . . . . . . 20 . 4 . . . Rewire 217 | . . . . . . . 40 . 177 . . . Trap . | . . . . . . . . . . . . . Miscellaneous . | . . . . . . . . . . . . . Route ------- -11/Scrapyard -10/Materials (discovered 2 exits: [*Min x2]) -10/Mines -10/Exiles -9/Mines -8/Materials (discovered 2 exits: *Fac x2) -7/Factory (discovered 2 exits: [*Low] / Gar) -7/Garrison (discovered 3 exits: *Fac x3) -6/Factory (discovered 4 exits: Low x2 / *Ext x2) -6/Extension (discovered 3 exits: *Fac x2 / *Cet) -6/Cetus -6/Archives (discovered 3 exits: *Fac / *Hub x2) -5/Factory (discovered 4 exits: Fac x4) History --------- Turn | Location | Event 4 | -11/Scrapyard | Discovered new exit (range 0) 4 | -11/Scrapyard | Entered Materials 301 | -10/Materials | Build established: Mutant 339 | -10/Materials | Discovered new exit (range 13) 487 | -10/Materials | Discovered new exit (range 6) 495 | -10/Materials | Entered Mines 537 | -10/Mines | Met a Derelict bent on vengeance 593 | -10/Mines | Learned location of 1 exit from Materials 603 | -10/Mines | Deemed a non-threat by the Exiles lab entrance 605 | -10/Mines | Discovered new exit (range 5) 620 | -10/Mines | Entered Exiles 620 | -10/Exiles | Accompanied by 2 allies 650 | -10/Exiles | Led the pair of lost Derelicts to a safe place 664 | -10/Exiles | Met 8R-AWN 686 | -10/Exiles | Met EX-HEX 734 | -10/Exiles | Met EX-BIN 755 | -10/Exiles | Aligned with FarCom system 756 | -10/Exiles | Given EX-Vault access code 795 | -10/Exiles | Opened EX-Vault 811 | -10/Exiles | Found Skeleton Box 844 | -10/Exiles | Warned to stay clear of 0b10 Research branches 890 | -10/Exiles | Met EX-DEC 911 | -10/Exiles | Learned location of Zion (-7) 1021 | -10/Exiles | Discovered new exit (range 10) 1034 | -10/Exiles | Left Exiles lab with Skeleton Box 1034 | -10/Exiles | Entered Mines 1199 | -9/Mines | Found the Drone Emporium 1206 | -9/Mines | Found Prototype Device 1207 | -9/Mines | Identified Thief Drone Bay 1343 | -9/Mines | Learned Materials security intel 1602 | -9/Mines | Received a Rocket Launcher from a helpful Derelict 1666 | -9/Mines | Learned location of 1 exit from Materials 2049 | -9/Mines | Learned location of Storage (-9) 2291 | -9/Mines | Discovered new exit (range 8) 2303 | -9/Mines | Entered Materials 2303 | -8/Materials | Evolved 4 slots: Propulsion x1, Utility x2, Weapon x1 2304 | -8/Materials | Identified exit to Factory 3371 | -8/Materials | Entered Factory 3371 | -7/Factory | Evolved 2 slots: Utility x2 3408 | -7/Factory | Build established: Assassin 4008 | -7/Factory | Discovered new exit (range 7) 4053 | -7/Factory | Identified exit to Garrison 4055 | -7/Factory | Entered Garrison 4335 | -7/Garrison | Found embedded Infiltrators 4345 | -7/Garrison | Triggered checkpoint 4396 | -7/Garrison | Garrison Relay disabled 4615 | -7/Garrison | Triggered checkpoint 4635 | -7/Garrison | Triggered checkpoint 4695 | -7/Garrison | Lost 6 parts (1n3u2w) 4729 | -7/Garrison | Destroyed 7 combat bots 4858 | -7/Garrison | Discovered new exit (range 12) 4875 | -7/Garrison | Identified exit to Factory 4909 | -7/Garrison | Triggered checkpoint 4943 | -7/Garrison | Lost 3 parts (1p2n) 4981 | -7/Garrison | Discovered exit to Factory (range 19) 5044 | -7/Garrison | Core integrity fell below 50% 5068 | -7/Garrison | Rescued a captive Derelict 5069 | -7/Garrison | Rescued a captive Derelict 5093 | -7/Garrison | Lost 11 parts (1p4n1u5w) 5138 | -7/Garrison | Phase Generator disabled 5335 | -7/Garrison | Garrison Relay disabled 5337 | -7/Garrison | Build established: Scavenger-Assassin 5420 | -7/Garrison | Core integrity fell below 20% 5441 | -7/Garrison | Garrison Relay disabled 5561 | -7/Garrison | Learned Factory security intel 5569 | -7/Garrison | Discovered exit to Factory (range 14) 5773 | -7/Garrison | Triggered checkpoint 5825 | -7/Garrison | Lost 3 parts (3n) 5866 | -7/Garrison | Garrison Relay disabled 6084 | -7/Garrison | Build established: Assassin 6383 | -7/Garrison | Triggered checkpoint 6404 | -7/Garrison | Garrison Relay disabled 6513 | -7/Garrison | Triggered checkpoint 6553 | -7/Garrison | Garrison Relay disabled 6618 | -7/Garrison | Build established: Scavenger-Skirmisher 6865 | -7/Garrison | Installed Relay Interface Framework 6899 | -7/Garrison | Entered Factory 6899 | -6/Factory | Accompanied by 8 allies 6899 | -6/Factory | Evolved 2 slots: Propulsion x1, Weapon x1 7165 | -6/Factory | Build established: Commander-Assassin 7249 | -6/Factory | First assault squad dispatched 7428 | -6/Factory | Identified exit to Lower Caves 7428 | -6/Factory | Identified exit to Extension 7482 | -6/Factory | Entered Extension 7482 | -6/Extension | Accompanied by 7 allies 7602 | -6/Extension | Lost 4 allies 7832 | -6/Extension | First assault squad dispatched 7906 | -6/Extension | Build established: Skirmisher 8149 | -6/Extension | Rescued a captive Derelict 8266 | -6/Extension | Spotted B-75 Beast 8331 | -6/Extension | Lost 3 allies 8411 | -6/Extension | Lost 3 parts (1p1n1w) 8733 | -6/Extension | Spotted B-75 Beast 8742 | -6/Extension | Allies destroyed B-75 Beast 8781 | -6/Extension | Destroyed B-75 Beast 8784 | -6/Extension | Core integrity fell below 50% 8804 | -6/Extension | Lost 11 parts (1p8n2w) 8811 | -6/Extension | Lost 3 allies 8888 | -6/Extension | Discovered new exit (range 3) 8889 | -6/Extension | Identified exit to Factory 9009 | -6/Extension | Discovered new exit (range 22) 9010 | -6/Extension | Discovered exit to Factory (range 21) 9056 | -6/Extension | Identified exit to Cetus 9057 | -6/Extension | Entered Cetus 9057 | -6/Cetus | Accompanied by 3 allies 9072 | -6/Cetus | Spotted Cetus Guard 9072 | -6/Cetus | Spotted Cetus Guard 9072 | -6/Cetus | Spotted Cetus Guard 9072 | -6/Cetus | Spotted Cetus Guard 9079 | -6/Cetus | Allies destroyed Cetus Guard 9096 | -6/Cetus | Allies destroyed Cetus Guard 9102 | -6/Cetus | Allies destroyed Cetus Guard 9109 | -6/Cetus | Allies destroyed Cetus Guard 9129 | -6/Cetus | Lost 3 parts (1p1u1w) 9169 | -6/Cetus | Build established: Scavenger-Skirmisher 9269 | -6/Cetus | Discovered new exit (range 22) 9327 | -6/Cetus | Entered Archives 9327 | -6/Archives | Accompanied by 1 ally 9391 | -6/Archives | Lost 4 parts (3n1w) 9502 | -6/Archives | Discovered new exit (range 22) 9582 | -6/Archives | Unable to access archive contents 9588 | -6/Archives | Discovered new exit (range 22) 9597 | -6/Archives | Unable to access archive contents 9603 | -6/Archives | Discovered exit to Factory (range 21) 9610 | -6/Archives | Unable to access archive contents 9624 | -6/Archives | Unable to access archive contents 9762 | -6/Archives | Build established: Scavenger-Assassin 9949 | -6/Archives | Identified exit to Hub_04(d) 9989 | -6/Archives | Entered Factory 9989 | -5/Factory | Evolved 2 slots: Utility x2 10098 | -5/Factory | Identified exit to Factory 10400 | -5/Factory | Spotted B-75 Beast 10404 | -5/Factory | Core integrity fell below 50% 10411 | -5/Factory | Lost 10 parts (4n5u1w) 10420 | -5/Factory | Core integrity fell below 20% 10431 | -5/Factory | Destroyed by G-50 Soldier with Heavy Laser Last Messages --------------- 10395_ ALERT: Hostiles spotted, dispatching reinforcements to Terminal F016. 10395_ Door malfunctions. 10395_ >> Machine Analyzer network decryption results: 10395_ Fabricator x1 10403_ System corrupted: Energy discharge (-39). 10418_ Nuclear Reactor explodes. 10418_ P-70 Sage destroyed. 10422_ Acquired Unknown Flight Unit. 10422_ Identified Field Propulsion Drive. 10423_ P-70 Sage resets P-70 Sage, system corruption cleaned. 10424_ Acquired Field Propulsion Drive. 10426_ System corrupted: Field Propulsion Drive fused. 10427_ Lgt. Angular Momentum Engine destroyed. 10429_ The unstable cave ceiling collapses. 10430_ T-07 Excavator destroyed. [Achievement: Achiever] Map ----- +----------------------------------------------------+ | ?????????????????????????????????????????????????? | | ?????????????????????????????????????????????????? | | ?????????????????????????????????????????????????? | | ?????????????????????????????????????????????????? | | ?????????????????????????????????????????????????? | | ?????????????????????????????????????????????????? | | ?????????????????????????????????????????????????? | | ?????????????????????????????????????????????????? | | ?????????????????????????????????????????????????? | | ?????????????????????????????????????????????????? | | ?????????????????????????????????????????????????? | | ?????????????????????????????????????????????????? | | ?????????????????g???????????????????????????????? | | ??????????????????g??????????????????????????????? | | ?????????????????????????????????????????????????? | | ???????????????????h?????????????????????????????? | | ??????????????# ?????????????????????????????????? | | ??????????????# ????????????????????????????????? | | ??????????????# ???????????????????????????????? | | ??????????????# ??????????????###?????????????? | | ??????????????# ????????????#BB# ??????????? | | ??????????????# #####+######;BB# ?? ??????? | | ??????????????# ?? ????? | | ??????????????# g ????? | | ??????????????# [= ""? ?????? | | ??????????????# % @ ! =! """ ?????? | | ??????????????# %! =! F" #?????? | | ??????????????###########;;*# """ #?????? | | ??????????????# ! #] "" #????"" | | ??????????????# ! != # """ #????"" | | ??????????????# != # """ #????"" | | ??????????????# = % # """ #?????? | | ??????????????# # ! #????"" | | ??????????????# #????"" | | ??????????????########### ### #????"" | | ???????????????????????# % # #?????? | | ???????????????????????# # ######+ | | ???????????????????????# # | | ???????????????????????# # # | | ???????????????????????# # | | ???????????????????????# ] # | | ???????????????????????## p [ # | | ???????????????????????? =% # | | ????????????????????????# *## | | ????????????????????????# "#####+######### | | ????????????????????????### ### #?? | | ??????????????????????????##### #?# #?? | | ??????????????????????????????? #?# """""" #?? | | ??????????????????????????????? ??# """""" #?? | | ??????????????????????????????????# """""" #?? | +----------------------------------------------------+ Best States ------------- Heat Dissipation 56 Energy Generation 25 Energy Capacity 350 Matter Stores 300 Matter Capacity 300 Sight Range 22 Terrain Scan Density 10 Armor Coverage 450 Resistance: TH 15 Core Shielding 20 Evasion (%) 61 Armor Integrity Analysis 30 Recoil Reduction 2 Offensive Hacking 24 Defensive Hacking 58 Item Schematics ----------------- None Robot Schematics ------------------ None Fabricated ------------ Nothing Alien Tech Used ----------------- None Achievements -------------- A New Friend Achiever The More The Merrier Challenges ------------ None Game ------ Seed LaserLayeredWeb Manual? 0 Play Time 01:56:08 Cumulative 23.5 hours Start 2024.04.24 @ 14:29:02 End 2024.04.24 @ 16:34:25 Sessions 1 Manual Loads 0 Difficulty Rogue Special Mode None Game No. 22 Rogue 22 Adventurer 0 Explorer 0 Win Type - Total 1 Types 1/0/0/0/0/0/0/0/0 Lore% 18 Gallery% 30 Achievement% 25 Wizard Run 0 Options --------- Layout 1 ASCII 0 Keyboard 0 Movement Numpad Keybinds 0 Fullscreen 2 Font 24/Smallcaps Map View 50x40 Zoom Use 0% Tactical HUD 1 Map Filters NONE Filters NONE Steam 1 RUN: f27d373c-107c-4a1f-b9b4-7696f0c2d25b